[Event "January 2 Late 2024"]
[Site "https://www.chess.com"]
[Date "2024.01.02"]
[Round "5"]
[White "Dias, Joao Batista"]
[Black "Mesquita, Eduardo Barbosa"]
[Result "0-1"]
[Board "200"]
[TimeControl "180+1"]
[WhiteFideId "2108240"]
[BlackFideId "22757163"]
[WhiteElo "1986"]
[BlackElo "2456"]
[WhiteTeam "BRA"]
[BlackTeam "BRA"]
[WhiteClock "0:00:02"]
[BlackClock "0:01:40"]

1. e4 {[%clk 0:03:00]}  c5 {[%clk 0:02:52]} 2. Nf3 {[%clk 0:03:00]}  d6 {[%clk 0:02:52]} 3. d4 {[%clk 0:03:00]}  cxd4 {[%clk 0:02:53]} 4. Nxd4 {[%clk 0:03:00]}  Nf6 {[%clk 0:02:54]} 5. Nc3 {[%clk 0:02:59]}  a6 {[%clk 0:02:54]} 6. Be3 {[%clk 0:02:59]}  e6 {[%clk 0:02:55]} 7. f3 {[%clk 0:02:59]}  b5 {[%clk 0:02:56]} 8. Bd3 {[%clk 0:02:58]}  Nbd7 {[%clk 0:02:56]} 9. Nce2 {[%clk 0:02:58]}  Bb7 {[%clk 0:02:51]} 10. c3 {[%clk 0:02:58]}  d5 {[%clk 0:02:51]} 11. exd5 {[%clk 0:02:56]}  Nxd5 {[%clk 0:02:52]} 12. Bf2 {[%clk 0:02:56]}  Ne5 {[%clk 0:02:48]} 13. O-O {[%clk 0:02:52]}  Bc5 {[%clk 0:02:48]} 14. Bc2 {[%clk 0:02:50]}  Nc4 {[%clk 0:02:46]} 15. Rb1 {[%clk 0:02:45]}  Nce3 {[%clk 0:02:44]} 16. Qd3 {[%clk 0:02:34]}  Nxf1 {[%clk 0:02:43]} 17. Rxf1 {[%clk 0:02:33]}  Nb6 {[%clk 0:02:35]} 18. Rd1 {[%clk 0:02:29]}  g6 {[%clk 0:02:33]} 19. b4 {[%clk 0:02:23]}  Be7 {[%clk 0:02:33]} 20. Qe3 {[%clk 0:02:20]}  Nd5 {[%clk 0:02:29]} 21. Qh6 {[%clk 0:02:05]}  Bf8 {[%clk 0:02:28]} 22. Qh3 {[%clk 0:01:56]}  Bg7 {[%clk 0:02:28]} 23. Kh1 {[%clk 0:01:43]}  O-O {[%clk 0:02:28]} 24. Bb3 {[%clk 0:01:33]}  Qb6 {[%clk 0:02:25]} 25. Bg1 {[%clk 0:01:29]}  Qc7 {[%clk 0:02:22]} 26. Rc1 {[%clk 0:01:26]}  Rfd8 {[%clk 0:02:19]} 27. a3 {[%clk 0:01:26]}  Rac8 {[%clk 0:02:18]} 28. Qh4 {[%clk 0:01:16]}  Bf6 {[%clk 0:02:17]} 29. Qf2 {[%clk 0:01:00]}  e5 {[%clk 0:02:16]} 30. Bxd5 {[%clk 0:00:51]}  Rxd5 {[%clk 0:02:15]} 31. Nb3 {[%clk 0:00:50]}  Be7 {[%clk 0:02:12]} 32. h4 {[%clk 0:00:40]}  Qc4 {[%clk 0:02:10]} 33. Qb6 {[%clk 0:00:26]}  Qxh4+ {[%clk 0:01:59]} 34. Bh2 {[%clk 0:00:25]}  Rd7 {[%clk 0:01:58]} 35. Na5 {[%clk 0:00:19]}  Bd8 {[%clk 0:01:53]} 36. Qe3 {[%clk 0:00:17]}  Bg5 {[%clk 0:01:52]} 37. f4 {[%clk 0:00:16]}  exf4 {[%clk 0:01:52]} 38. Nxf4 {[%clk 0:00:15]}  Re7 {[%clk 0:01:50]} 39. Qd4 {[%clk 0:00:12]}  Re4 {[%clk 0:01:40]} 40. Qd6 {[%clk 0:00:06]}  Bxf4 {[%clk 0:01:41]} 41. g3 {[%clk 0:00:02]}  Re1# {[%clk 0:01:40]} 0-1

[Event "January 2 Late 2024"]
[Site "https://www.chess.com"]
[Date "2024.01.02"]
[Round "5"]
[White "Aung Thant Zin"]
[Black "Balla, Tamas-Kristof"]
[Result "0-1"]
[Board "201"]
[TimeControl "180+1"]
[WhiteFideId "13000063"]
[BlackFideId "1208497"]
[WhiteElo "2109"]
[BlackElo "2455"]
[WhiteTeam "MYA"]
[BlackTeam "ROU"]
[WhiteClock "0:01:30"]
[BlackClock "0:01:28"]

1. e4 {[%clk 0:03:00]}  c5 {[%clk 0:03:00]} 2. Nf3 {[%clk 0:02:59]}  Nc6 {[%clk 0:03:01]} 3. Bb5 {[%clk 0:02:59]}  Nf6 {[%clk 0:03:01]} 4. e5 {[%clk 0:02:57]}  Nd5 {[%clk 0:03:00]} 5. Nc3 {[%clk 0:02:57]}  Nc7 {[%clk 0:02:59]} 6. Bxc6 {[%clk 0:02:55]}  dxc6 {[%clk 0:02:59]} 7. h3 {[%clk 0:02:53]}  h6 {[%clk 0:02:58]} 8. O-O {[%clk 0:02:52]}  Bf5 {[%clk 0:02:59]} 9. d3 {[%clk 0:02:52]}  e6 {[%clk 0:02:57]} 10. Re1 {[%clk 0:02:51]}  Be7 {[%clk 0:02:57]} 11. Bd2 {[%clk 0:02:51]}  O-O {[%clk 0:02:57]} 12. Ne4 {[%clk 0:02:50]}  b6 {[%clk 0:02:37]} 13. Bf4 {[%clk 0:02:46]}  Nd5 {[%clk 0:02:36]} 14. Bg3 {[%clk 0:02:45]}  a5 {[%clk 0:02:31]} 15. a3 {[%clk 0:02:41]}  Qd7 {[%clk 0:02:19]} 16. c4 {[%clk 0:02:34]}  Nc7 {[%clk 0:02:13]} 17. Qb3 {[%clk 0:02:33]}  Rab8 {[%clk 0:01:52]} 18. Rad1 {[%clk 0:02:31]}  Rfd8 {[%clk 0:01:52]} 19. d4 {[%clk 0:02:17]}  cxd4 {[%clk 0:01:43]} 20. Nxd4 {[%clk 0:02:15]}  Bxe4 {[%clk 0:01:42]} 21. Rxe4 {[%clk 0:02:00]}  c5 {[%clk 0:01:41]} 22. Qc3 {[%clk 0:01:51]}  cxd4 {[%clk 0:01:35]} 23. Rexd4 {[%clk 0:01:49]}  Qc6 {[%clk 0:01:34]} 24. b4 {[%clk 0:01:35]}  Rxd4 {[%clk 0:01:31]} 25. Rxd4 {[%clk 0:01:35]}  axb4 {[%clk 0:01:28]} 26. axb4 {[%clk 0:01:30]}  Nb5 {[%clk 0:01:28]} 0-1

[Event "January 2 Late 2024"]
[Site "https://www.chess.com"]
[Date "2024.01.02"]
[Round "5"]
[White "Quirke, Jeffrey"]
[Black "Kubatko, Ivan"]
[Result "1-0"]
[Board "202"]
[TimeControl "180+1"]
[WhiteFideId "2013029"]
[BlackFideId "24111473"]
[WhiteElo "2071"]
[BlackElo "2351"]
[WhiteTeam "USA"]
[BlackTeam "RUS"]
[WhiteClock "0:00:45"]
[BlackClock "0:00:30"]

1. e4 {[%clk 0:03:00]}  d5 {[%clk 0:02:53]} 2. exd5 {[%clk 0:02:52]}  Qxd5 {[%clk 0:02:53]} 3. Nc3 {[%clk 0:02:52]}  Qa5 {[%clk 0:02:53]} 4. Nf3 {[%clk 0:02:51]}  Nf6 {[%clk 0:02:52]} 5. Be2 {[%clk 0:02:50]}  Bg4 {[%clk 0:02:51]} 6. b4 {[%clk 0:02:37]}  Qb6 {[%clk 0:02:48]} 7. a4 {[%clk 0:02:28]}  Qd6 {[%clk 0:02:36]} 8. Ba3 {[%clk 0:02:06]}  e6 {[%clk 0:01:53]} 9. b5 {[%clk 0:02:06]}  Qd8 {[%clk 0:01:52]} 10. Bxf8 {[%clk 0:02:06]}  Kxf8 {[%clk 0:01:53]} 11. O-O {[%clk 0:02:07]}  Nbd7 {[%clk 0:01:42]} 12. h3 {[%clk 0:01:58]}  Bh5 {[%clk 0:01:39]} 13. a5 {[%clk 0:01:44]}  Kg8 {[%clk 0:01:21]} 14. a6 {[%clk 0:01:44]}  bxa6 {[%clk 0:01:20]} 15. Rxa6 {[%clk 0:01:39]}  Nb6 {[%clk 0:01:20]} 16. Qa1 {[%clk 0:01:32]}  Qb8 {[%clk 0:01:02]} 17. g4 {[%clk 0:01:20]}  Bg6 {[%clk 0:01:01]} 18. Ne5 {[%clk 0:01:20]}  Nfd5 {[%clk 0:00:55]} 19. Nc6 {[%clk 0:01:16]}  Qb7 {[%clk 0:00:48]} 20. Nxd5 {[%clk 0:00:52]}  Nxd5 {[%clk 0:00:39]} 21. c4 {[%clk 0:00:47]}  Nf4 {[%clk 0:00:31]} 22. Bf3 {[%clk 0:00:46]}  Kf8 {[%clk 0:00:30]} 23. Qa3+ {[%clk 0:00:45]} 1-0

[Event "January 2 Late 2024"]
[Site "https://www.chess.com"]
[Date "2024.01.02"]
[Round "5"]
[White "Prokhorov, Oleksandr"]
[Black "De Souza, Arthur Olintho"]
[Result "1-0"]
[Board "203"]
[TimeControl "180+1"]
[WhiteFideId "14105578"]
[BlackFideId "2116200"]
[WhiteElo "2328"]
[BlackElo "2068"]
[WhiteTeam "UKR"]
[BlackTeam "BRA"]
[WhiteClock "0:01:51"]
[BlackClock "0:00:41"]

1. d4 {[%clk 0:02:56]}  d5 {[%clk 0:02:59]} 2. c4 {[%clk 0:02:56]}  Bf5 {[%clk 0:03:00]} 3. Nc3 {[%clk 0:02:55]}  e6 {[%clk 0:03:00]} 4. cxd5 {[%clk 0:02:49]}  exd5 {[%clk 0:03:01]} 5. Qb3 {[%clk 0:02:49]}  Nc6 {[%clk 0:03:01]} 6. Nf3 {[%clk 0:02:49]}  Nb4 {[%clk 0:03:01]} 7. e4 {[%clk 0:02:38]}  dxe4 {[%clk 0:03:02]} 8. Ne5 {[%clk 0:02:30]}  Be6 {[%clk 0:03:01]} 9. Qa4+ {[%clk 0:02:29]}  c6 {[%clk 0:03:01]} 10. a3 {[%clk 0:02:25]}  Qxd4 {[%clk 0:02:57]} 11. axb4 {[%clk 0:02:15]}  Qxe5 {[%clk 0:02:56]} 12. b5 {[%clk 0:02:12]}  Bd7 {[%clk 0:02:34]} 13. bxc6 {[%clk 0:02:06]}  Bxc6 {[%clk 0:02:34]} 14. Bb5 {[%clk 0:02:05]}  Bxb5 {[%clk 0:02:33]} 15. Nxb5 {[%clk 0:02:05]}  Ke7 {[%clk 0:01:02]} 16. Bd2 {[%clk 0:01:58]}  f5 {[%clk 0:00:46]} 17. O-O {[%clk 0:01:53]}  Kf7 {[%clk 0:00:45]} 18. Qc4+ {[%clk 0:01:51]}  Qe6 {[%clk 0:00:45]} 19. Qxe6+ {[%clk 0:01:50]}  Kxe6 {[%clk 0:00:41]} 20. Nc7+ {[%clk 0:01:51]} 1-0

[Event "January 2 Late 2024"]
[Site "https://www.chess.com"]
[Date "2024.01.02"]
[Round "5"]
[White "Andersson, Bjorn 1971"]
[Black "Vujcic, Milena"]
[Result "1-0"]
[Board "205"]
[TimeControl "180+1"]
[WhiteFideId "1702114"]
[BlackFideId "954748"]
[WhiteElo "2226"]
[BlackElo "2021"]
[WhiteTeam "SWE"]
[BlackTeam "SRB"]
[WhiteClock "0:01:22"]
[BlackClock "0:01:44"]

1. e4 {[%clk 0:03:00]}  e5 {[%clk 0:02:58]} 2. Nf3 {[%clk 0:02:57]}  Nc6 {[%clk 0:02:58]} 3. d4 {[%clk 0:02:56]}  exd4 {[%clk 0:02:57]} 4. Bb5 {[%clk 0:02:57]}  Nf6 {[%clk 0:02:43]} 5. O-O {[%clk 0:02:55]}  Be7 {[%clk 0:02:37]} 6. e5 {[%clk 0:02:51]}  Ne4 {[%clk 0:02:37]} 7. Re1 {[%clk 0:02:50]}  Nc5 {[%clk 0:02:36]} 8. Nxd4 {[%clk 0:02:50]}  Nxd4 {[%clk 0:02:35]} 9. Qxd4 {[%clk 0:02:49]}  O-O {[%clk 0:02:35]} 10. Nc3 {[%clk 0:02:44]}  c6 {[%clk 0:02:33]} 11. Bf1 {[%clk 0:02:43]}  d5 {[%clk 0:02:33]} 12. exd6 {[%clk 0:02:27]}  Bxd6 {[%clk 0:02:31]} 13. Bf4 {[%clk 0:02:20]}  Ne6 {[%clk 0:02:25]} 14. Qxd6 {[%clk 0:02:20]}  Qb6 {[%clk 0:02:14]} 15. Be5 {[%clk 0:01:58]}  Rd8 {[%clk 0:02:08]} 16. Qa3 {[%clk 0:01:56]}  Bd7 {[%clk 0:02:03]} 17. Rad1 {[%clk 0:01:51]}  Be8 {[%clk 0:01:59]} 18. Na4 {[%clk 0:01:44]}  Qa5 {[%clk 0:01:57]} 19. Bc3 {[%clk 0:01:40]}  Qh5 {[%clk 0:01:56]} 20. Rxd8 {[%clk 0:01:30]}  Rxd8 {[%clk 0:01:56]} 21. Qe7 {[%clk 0:01:29]}  b5 {[%clk 0:01:44]} 22. Rxe6 {[%clk 0:01:22]} 1-0

[Event "January 2 Late 2024"]
[Site "https://www.chess.com"]
[Date "2024.01.02"]
[Round "5"]
[White "Rose, Felix"]
[Black "Oliveira, Tiago Batista"]
[Result "1-0"]
[Board "206"]
[TimeControl "180+1"]
[WhiteFideId "5105722"]
[BlackFideId "2108291"]
[WhiteElo "2221"]
[BlackElo "2020"]
[WhiteTeam "MEX"]
[BlackTeam "BRA"]
[WhiteClock "0:01:12"]
[BlackClock "0:00:00"]

1. e4 {[%clk 0:03:00]}  e5 {[%clk 0:02:57]} 2. Nf3 {[%clk 0:03:00]}  Nc6 {[%clk 0:02:56]} 3. Bc4 {[%clk 0:02:59]}  Bc5 {[%clk 0:02:51]} 4. c3 {[%clk 0:02:57]}  d6 {[%clk 0:02:48]} 5. d4 {[%clk 0:02:54]}  exd4 {[%clk 0:02:46]} 6. cxd4 {[%clk 0:02:54]}  Bb6 {[%clk 0:02:44]} 7. h3 {[%clk 0:02:42]}  Nf6 {[%clk 0:02:41]} 8. Nc3 {[%clk 0:02:42]}  h6 {[%clk 0:02:39]} 9. O-O {[%clk 0:02:40]}  O-O {[%clk 0:02:39]} 10. Bb3 {[%clk 0:02:37]}  Re8 {[%clk 0:02:29]} 11. Re1 {[%clk 0:02:37]}  Bd7 {[%clk 0:02:15]} 12. a3 {[%clk 0:02:31]}  a6 {[%clk 0:02:01]} 13. Qd3 {[%clk 0:02:27]}  Ne7 {[%clk 0:01:05]} 14. Bc2 {[%clk 0:02:02]}  Ng6 {[%clk 0:00:59]} 15. e5 {[%clk 0:01:49]}  dxe5 {[%clk 0:00:55]} 16. dxe5 {[%clk 0:01:43]}  Nh5 {[%clk 0:00:47]} 17. g4 {[%clk 0:01:27]}  Ng3 {[%clk 0:00:17]} 18. Kg2 {[%clk 0:01:17]}  Bc6 {[%clk 0:00:00]} 19. Qxd8 {[%clk 0:01:12]} 1-0

[Event "January 2 Late 2024"]
[Site "https://www.chess.com"]
[Date "2024.01.02"]
[Round "5"]
[White "Smirnov, Timofey"]
[Black "Ferriz Barrios, Andres"]
[Result "1-0"]
[Board "208"]
[TimeControl "180+1"]
[WhiteFideId "24176427"]
[BlackFideId "5104467"]
[WhiteElo "1980"]
[BlackElo "2169"]
[WhiteTeam "RUS"]
[BlackTeam "MEX"]
[WhiteClock "0:00:04"]
[BlackClock "0:01:23"]

1. d4 {[%clk 0:03:00]}  f5 {[%clk 0:02:58]} 2. h3 {[%clk 0:03:00]}  e6 {[%clk 0:02:59]} 3. g4 {[%clk 0:03:00]}  fxg4 {[%clk 0:02:59]} 4. hxg4 {[%clk 0:03:01]}  d5 {[%clk 0:03:00]} 5. Qd3 {[%clk 0:02:56]}  g6 {[%clk 0:03:00]} 6. Nf3 {[%clk 0:02:39]}  Bg7 {[%clk 0:02:57]} 7. Rxh7 {[%clk 0:02:29]}  Rxh7 {[%clk 0:02:54]} 8. Qxg6+ {[%clk 0:02:29]}  Kf8 {[%clk 0:02:55]} 9. Qxh7 {[%clk 0:02:29]}  Nf6 {[%clk 0:02:54]} 10. Bg5 {[%clk 0:02:07]}  Nxh7 {[%clk 0:02:52]} 11. Bxd8 {[%clk 0:02:07]}  c6 {[%clk 0:02:52]} 12. Nbd2 {[%clk 0:01:51]}  Bd7 {[%clk 0:02:49]} 13. O-O-O {[%clk 0:01:46]}  Be8 {[%clk 0:02:47]} 14. Ne5 {[%clk 0:01:39]}  Nd7 {[%clk 0:02:46]} 15. Nxd7+ {[%clk 0:01:37]}  Bxd7 {[%clk 0:02:47]} 16. Bh4 {[%clk 0:01:35]}  Bxd4 {[%clk 0:02:45]} 17. Nf3 {[%clk 0:01:33]}  Bg7 {[%clk 0:02:44]} 18. Bh3 {[%clk 0:01:27]}  e5 {[%clk 0:02:43]} 19. Bg3 {[%clk 0:01:17]}  Re8 {[%clk 0:02:42]} 20. Rh1 {[%clk 0:01:14]}  e4 {[%clk 0:02:41]} 21. Nd2 {[%clk 0:01:07]}  Ng5 {[%clk 0:02:39]} 22. Bd6+ {[%clk 0:00:54]}  Kg8 {[%clk 0:02:38]} 23. f3 {[%clk 0:00:35]}  e3 {[%clk 0:02:29]} 24. Nf1 {[%clk 0:00:30]}  b6 {[%clk 0:02:26]} 25. Bf4 {[%clk 0:00:28]}  Nxh3 {[%clk 0:02:25]} 26. Rxh3 {[%clk 0:00:27]}  d4 {[%clk 0:02:26]} 27. Ng3 {[%clk 0:00:23]}  c5 {[%clk 0:02:23]} 28. Ne4 {[%clk 0:00:22]}  Kf8 {[%clk 0:01:56]} 29. Bd6+ {[%clk 0:00:21]}  Kf7 {[%clk 0:01:56]} 30. Rh7 {[%clk 0:00:18]}  Kg6 {[%clk 0:01:55]} 31. Rh1 {[%clk 0:00:18]}  Bc6 {[%clk 0:01:46]} 32. Ng3 {[%clk 0:00:11]}  c4 {[%clk 0:01:45]} 33. Nf5 {[%clk 0:00:10]}  d3 {[%clk 0:01:38]} 34. Ne7+ {[%clk 0:00:09]}  Kf7 {[%clk 0:01:35]} 35. Nxc6 {[%clk 0:00:09]}  Re6 {[%clk 0:01:35]} 36. Nd8+ {[%clk 0:00:07]}  Kf6 {[%clk 0:01:35]} 37. Nxe6 {[%clk 0:00:08]}  Kxe6 {[%clk 0:01:36]} 38. Bf4 {[%clk 0:00:08]}  d2+ {[%clk 0:01:33]} 39. Kd1 {[%clk 0:00:08]}  Bxb2 {[%clk 0:01:33]} 40. Bxe3 {[%clk 0:00:08]}  c3 {[%clk 0:01:34]} 41. Rh6+ {[%clk 0:00:06]}  Kd5 {[%clk 0:01:34]} 42. Rh7 {[%clk 0:00:06]}  a5 {[%clk 0:01:33]} 43. Bxb6 {[%clk 0:00:06]}  a4 {[%clk 0:01:34]} 44. Ra7 {[%clk 0:00:05]}  a3 {[%clk 0:01:33]} 45. Be3 {[%clk 0:00:05]}  Ke5 {[%clk 0:01:30]} 46. g5 {[%clk 0:00:05]}  Kf5 {[%clk 0:01:30]} 47. Ra5+ {[%clk 0:00:04]}  Kg6 {[%clk 0:01:31]} 48. f4 {[%clk 0:00:04]}  Kh5 {[%clk 0:01:31]} 49. Ra6 {[%clk 0:00:03]}  Bc1 {[%clk 0:01:25]} 50. g6 {[%clk 0:00:04]}  Kh6 {[%clk 0:01:25]} 51. f5+ {[%clk 0:00:04]}  Kg7 {[%clk 0:01:26]} 52. Ra7+ {[%clk 0:00:04]}  Kf6 {[%clk 0:01:26]} 53. Bd4+ {[%clk 0:00:04]}  Kxf5 {[%clk 0:01:23]} 54. g7 {[%clk 0:00:04]} 1-0

[Event "January 2 Late 2024"]
[Site "https://www.chess.com"]
[Date "2024.01.02"]
[Round "5"]
[White "yujiarun18"]
[Black "Alves Campelo, Danilo Cesar De L"]
[Result "0-1"]
[Board "209"]
[TimeControl "180+1"]
[BlackFideId "2123657"]
[WhiteElo "2164"]
[BlackElo "1929"]
[BlackTeam "BRA"]
[WhiteClock "0:00:16"]
[BlackClock "0:00:21"]

1. e4 {[%clk 0:03:00]}  e6 {[%clk 0:02:55]} 2. d4 {[%clk 0:02:59]}  d5 {[%clk 0:02:55]} 3. Nd2 {[%clk 0:02:59]}  c5 {[%clk 0:02:53]} 4. exd5 {[%clk 0:02:58]}  Qxd5 {[%clk 0:02:54]} 5. Bc4 {[%clk 0:02:57]}  Qd8 {[%clk 0:02:53]} 6. Ngf3 {[%clk 0:02:57]}  Nf6 {[%clk 0:02:46]} 7. O-O {[%clk 0:02:54]}  Nc6 {[%clk 0:02:38]} 8. Nb3 {[%clk 0:02:50]}  cxd4 {[%clk 0:02:35]} 9. Nbxd4 {[%clk 0:02:51]}  Bd7 {[%clk 0:02:32]} 10. Nb5 {[%clk 0:02:47]}  Na5 {[%clk 0:02:18]} 11. Bf4 {[%clk 0:02:23]}  Nxc4 {[%clk 0:02:01]} 12. Nc7+ {[%clk 0:02:22]}  Ke7 {[%clk 0:02:00]} 13. Nxa8 {[%clk 0:02:19]}  Qxa8 {[%clk 0:01:58]} 14. b3 {[%clk 0:02:13]}  Nd5 {[%clk 0:01:58]} 15. Bg5+ {[%clk 0:02:06]}  f6 {[%clk 0:01:58]} 16. bxc4 {[%clk 0:02:05]}  Nb6 {[%clk 0:01:47]} 17. Be3 {[%clk 0:01:42]}  Nxc4 {[%clk 0:01:47]} 18. Qd3 {[%clk 0:01:38]}  Qc8 {[%clk 0:01:32]} 19. Rfd1 {[%clk 0:01:29]}  a6 {[%clk 0:01:14]} 20. Rab1 {[%clk 0:01:27]}  Bb5 {[%clk 0:01:12]} 21. Qb3 {[%clk 0:01:22]}  Kf7 {[%clk 0:01:04]} 22. a4 {[%clk 0:01:22]}  Na5 {[%clk 0:00:58]} 23. Qb2 {[%clk 0:01:12]}  Nc4 {[%clk 0:00:53]} 24. Qa2 {[%clk 0:01:06]}  Nxe3 {[%clk 0:00:51]} 25. fxe3 {[%clk 0:01:05]}  Bc6 {[%clk 0:00:47]} 26. Nd4 {[%clk 0:01:02]}  Bd5 {[%clk 0:00:48]} 27. Qb2 {[%clk 0:01:01]}  Bc5 {[%clk 0:00:47]} 28. Kh1 {[%clk 0:01:00]}  Rd8 {[%clk 0:00:45]} 29. c3 {[%clk 0:00:59]}  b6 {[%clk 0:00:41]} 30. Qc2 {[%clk 0:00:59]}  Kg8 {[%clk 0:00:39]} 31. e4 {[%clk 0:00:59]}  Bc4 {[%clk 0:00:38]} 32. Qf2 {[%clk 0:00:58]}  e5 {[%clk 0:00:38]} 33. Nf5 {[%clk 0:00:57]}  Bxf2 {[%clk 0:00:38]} 34. Ne7+ {[%clk 0:00:50]}  Kf7 {[%clk 0:00:39]} 35. Nxc8 {[%clk 0:00:50]}  Rxc8 {[%clk 0:00:40]} 36. h3 {[%clk 0:00:50]}  Bc5 {[%clk 0:00:39]} 37. Rd7+ {[%clk 0:00:50]}  Kg6 {[%clk 0:00:38]} 38. Rbd1 {[%clk 0:00:50]}  Bb3 {[%clk 0:00:37]} 39. R1d3 {[%clk 0:00:49]}  Bxa4 {[%clk 0:00:37]} 40. Rg3+ {[%clk 0:00:48]}  Kh6 {[%clk 0:00:37]} 41. Rdxg7 {[%clk 0:00:49]}  Bd1 {[%clk 0:00:23]} 42. Rd3 {[%clk 0:00:39]}  Rc6 {[%clk 0:00:21]} 43. Rg8 {[%clk 0:00:33]}  Bh5 {[%clk 0:00:20]} 44. g4 {[%clk 0:00:31]}  Bg6 {[%clk 0:00:20]} 45. h4 {[%clk 0:00:30]}  Bxe4+ {[%clk 0:00:21]} 46. Kh2 {[%clk 0:00:28]}  Bxd3 {[%clk 0:00:21]} 47. Kg3 {[%clk 0:00:28]}  f5 {[%clk 0:00:19]} 48. g5+ {[%clk 0:00:27]}  Kh5 {[%clk 0:00:19]} 49. Rg7 {[%clk 0:00:26]}  f4+ {[%clk 0:00:19]} 50. Kh3 {[%clk 0:00:25]}  Bg6 {[%clk 0:00:20]} 51. Ra7 {[%clk 0:00:21]}  a5 {[%clk 0:00:20]} 52. Rb7 {[%clk 0:00:16]}  Rd6 {[%clk 0:00:21]} 0-1

[Event "January 2 Late 2024"]
[Site "https://www.chess.com"]
[Date "2024.01.02"]
[Round "5"]
[White "Petersson, Kjell"]
[Black "Vargas, Mauricio"]
[Result "1-0"]
[Board "211"]
[TimeControl "180+1"]
[WhiteFideId "1705148"]
[BlackFideId "4404572"]
[WhiteElo "2112"]
[BlackElo "1836"]
[WhiteTeam "SWE"]
[BlackTeam "COL"]
[WhiteClock "0:00:17"]
[BlackClock "0:00:00"]

1. d4 {[%clk 0:03:00]}  d5 {[%clk 0:02:55]} 2. Bf4 {[%clk 0:03:01]}  h5 {[%clk 0:02:54]} 3. Nf3 {[%clk 0:02:59]}  Bg4 {[%clk 0:02:53]} 4. e3 {[%clk 0:02:39]}  e5 {[%clk 0:02:26]} 5. dxe5 {[%clk 0:02:38]}  Bxf3 {[%clk 0:02:23]} 6. Qxf3 {[%clk 0:02:26]}  g5 {[%clk 0:02:22]} 7. e4 {[%clk 0:02:09]}  dxe4 {[%clk 0:02:12]} 8. Qxe4 {[%clk 0:02:07]}  gxf4 {[%clk 0:02:12]} 9. Qxb7 {[%clk 0:02:05]}  Nd7 {[%clk 0:02:08]} 10. Bb5 {[%clk 0:02:04]}  Rb8 {[%clk 0:01:45]} 11. Bxd7+ {[%clk 0:02:01]}  Kxd7 {[%clk 0:01:44]} 12. Qd5+ {[%clk 0:01:57]}  Ke8 {[%clk 0:01:44]} 13. Qc6+ {[%clk 0:01:49]}  Qd7 {[%clk 0:01:43]} 14. Qc3 {[%clk 0:01:49]}  Bb4 {[%clk 0:01:42]} 15. O-O {[%clk 0:01:47]}  Bxc3 {[%clk 0:01:42]} 16. Nxc3 {[%clk 0:01:47]}  Qe6 {[%clk 0:01:35]} 17. b3 {[%clk 0:01:45]}  Nh6 {[%clk 0:01:34]} 18. Ne4 {[%clk 0:01:40]}  Qxe5 {[%clk 0:01:28]} 19. Rfe1 {[%clk 0:01:39]}  Qg7 {[%clk 0:01:14]} 20. Nf6+ {[%clk 0:01:28]}  Kf8 {[%clk 0:01:14]} 21. Nd7+ {[%clk 0:01:28]}  Kg8 {[%clk 0:01:11]} 22. Nxb8 {[%clk 0:01:28]}  Kh7 {[%clk 0:01:11]} 23. Nc6 {[%clk 0:01:27]}  Rg8 {[%clk 0:01:04]} 24. g3 {[%clk 0:01:26]}  fxg3 {[%clk 0:01:03]} 25. fxg3 {[%clk 0:01:26]}  Ng4 {[%clk 0:00:57]} 26. Rad1 {[%clk 0:01:15]}  Nxh2 {[%clk 0:00:51]} 27. Rd3 {[%clk 0:01:14]}  Ng4 {[%clk 0:00:38]} 28. Ne7 {[%clk 0:01:09]}  Re8 {[%clk 0:00:31]} 29. Kg2 {[%clk 0:01:03]}  Qf6 {[%clk 0:00:27]} 30. Rf3 {[%clk 0:00:57]}  Qg7 {[%clk 0:00:15]} 31. Nf5 {[%clk 0:00:55]}  Qg6 {[%clk 0:00:14]} 32. Rxe8 {[%clk 0:00:54]}  Qc6 {[%clk 0:00:13]} 33. Re2 {[%clk 0:00:51]}  h4 {[%clk 0:00:07]} 34. Nd4 {[%clk 0:00:51]}  Qb7 {[%clk 0:00:04]} 35. Re7 {[%clk 0:00:48]}  Kg7 {[%clk 0:00:03]} 36. Rxf7+ {[%clk 0:00:48]}  Kg6 {[%clk 0:00:03]} 37. Rf8 {[%clk 0:00:46]}  Ne5 {[%clk 0:00:03]} 38. Rg8+ {[%clk 0:00:42]}  Kh7 {[%clk 0:00:02]} 39. Rg5 {[%clk 0:00:40]}  Nxf3 {[%clk 0:00:03]} 40. Nxf3 {[%clk 0:00:40]}  hxg3 {[%clk 0:00:03]} 41. Kxg3 {[%clk 0:00:40]}  Qc6 {[%clk 0:00:02]} 42. c4 {[%clk 0:00:37]}  Qd6+ {[%clk 0:00:03]} 43. Kg4 {[%clk 0:00:34]}  Qd3 {[%clk 0:00:04]} 44. Rh5+ {[%clk 0:00:34]}  Kg6 {[%clk 0:00:03]} 45. Rg5+ {[%clk 0:00:34]}  Kf6 {[%clk 0:00:04]} 46. Rh5 {[%clk 0:00:30]}  Qe4+ {[%clk 0:00:04]} 47. Kg3 {[%clk 0:00:29]}  Qe6 {[%clk 0:00:03]} 48. Rh6+ {[%clk 0:00:28]}  Kf7 {[%clk 0:00:01]} 49. Rxe6 {[%clk 0:00:29]}  Kxe6 {[%clk 0:00:01]} 50. Kf4 {[%clk 0:00:29]}  Kd6 {[%clk 0:00:02]} 51. Ke4 {[%clk 0:00:29]}  Kc5 {[%clk 0:00:03]} 52. Kd3 {[%clk 0:00:29]}  Kb4 {[%clk 0:00:03]} 53. Kc2 {[%clk 0:00:29]}  Ka3 {[%clk 0:00:04]} 54. Kb1 {[%clk 0:00:30]}  a5 {[%clk 0:00:05]} 55. Nd4 {[%clk 0:00:27]}  c5 {[%clk 0:00:05]} 56. Nb5+ {[%clk 0:00:25]}  Kb4 {[%clk 0:00:05]} 57. Kb2 {[%clk 0:00:24]}  a4 {[%clk 0:00:05]} 58. a3+ {[%clk 0:00:25]}  Ka5 {[%clk 0:00:04]} 59. bxa4 {[%clk 0:00:24]}  Kxa4 {[%clk 0:00:04]} 60. Nc7 {[%clk 0:00:23]}  Ka5 {[%clk 0:00:04]} 61. Ne6 {[%clk 0:00:23]}  Kb6 {[%clk 0:00:04]} 62. Kb3 {[%clk 0:00:23]}  Kc6 {[%clk 0:00:04]} 63. Ka4 {[%clk 0:00:23]}  Kd6 {[%clk 0:00:05]} 64. Ng5 {[%clk 0:00:22]}  Kc6 {[%clk 0:00:05]} 65. Ne4 {[%clk 0:00:20]}  Kb6 {[%clk 0:00:05]} 66. Kb3 {[%clk 0:00:18]}  Kc6 {[%clk 0:00:04]} 67. a4 {[%clk 0:00:19]}  Kb6 {[%clk 0:00:04]} 68. Ka3 {[%clk 0:00:18]}  Kc6 {[%clk 0:00:04]} 69. a5 {[%clk 0:00:19]}  Kb7 {[%clk 0:00:01]} 70. Ka4 {[%clk 0:00:19]}  Kc6 {[%clk 0:00:02]} 71. a6 {[%clk 0:00:17]}  Kb6 {[%clk 0:00:00]} 72. Nxc5 {[%clk 0:00:17]} 1-0